fUST/lending_fUST_20240722
["ID","MTS","AMOUNT","RATE_DAILY","PERIOD"]
[332854237,1721583051906,-500.0,0.00015342,2]
[332854238,1721583051919,-500.0,0.00015342,2]
[332854239,1721583051932,-500.0,0.00015342,2]
[332854240,1721583051944,-500.0,0.00015342,2]
[332854241,1721583051957,-539.84,0.00015342,2]
[332854242,1721583051968,-2033.74,0.00015342,2]
[332854243,1721583051980,-500.0,0.00015342,2]
[332854244,1721583051992,-500.0,0.00015342,2]
[332854245,1721583052003,-500.0,0.00015342,2]
[332854246,1721583052016,-500.0,0.00015342,2]
[332854247,1721583052028,-1177.69,0.00015342,2]
[332854248,1721583052040,-735.43,0.00015342,2]
[332854249,1721583052053,-541.65889179,0.00015342,2]
[332854250,1721583052066,-554.94,0.00015342,2]
[332854251,1721583052079,-500.0,0.00015342,2]
[332854252,1721583052090,-549.02,0.00015342,2]
[332854253,1721583052102,-685.82,0.00015342,2]
[332854254,1721583052112,-575.57,0.00015342,2]
[332854255,1721583052124,-1031.38,0.00015342,2]
[332854256,1721583052137,-462.1220246,0.00015342,2]
[332854257,1721583052150,-500.0,0.00015342,2]
[332854258,1721583052162,-558.14010913,0.00015342,2]
[332854259,1721583052176,-500.0,0.00015342,2]
[332854260,1721583052188,-500.0,0.00015342,2]
[332854261,1721583052199,-500.0,0.00015342,2]
[332854262,1721583052215,-714.38,0.00015342,2]
[332854263,1721583052227,-500.0,0.00015342,2]
[332854264,1721583052240,-500.0,0.00015342,2]
[332854265,1721583052251,-505.12,0.00015342,2]
[332854266,1721583052262,-1365.28,0.00015342,2]
[332854267,1721583052276,-500.0,0.00015342,2]
[332854268,1721583052288,-381.8663704,0.00015342,2]
[332854269,1721583052299,-647.07,0.00015342,2]
[332854270,1721583052310,-589.48,0.00015342,2]
[332854271,1721583052321,-508.21,0.00015342,2]
[332854272,1721583052332,-500.0,0.00015342,2]
[332854273,1721583052343,-768.59,0.00015342,2]
[332854274,1721583052354,-647.55,0.00015342,2]
[332854275,1721583052364,-500.0,0.00015342,2]
[332854276,1721583052375,-953.2,0.00015342,2]
[332854277,1721583052385,-500.0,0.00015342,2]
[332854278,1721583052396,-874.1,0.00015342,2]
[332854279,1721583052407,-519.25,0.00015342,2]
[332854280,1721583052417,-884.66,0.00015342,2]
[332854281,1721583052428,-1057.52,0.00015342,2]
[332854282,1721583052438,-1889.7,0.00015342,2]
[332854283,1721583052448,-500.0,0.00015342,2]
[332854284,1721583052459,-1132.04,0.00015342,2]
[332854285,1721583052470,-666.49,0.00015342,2]
[332854286,1721583052480,-668.28,0.00015342,2]
[332854287,1721583052491,-500.0,0.00015342,2]
[332854288,1721583052501,-1624.09,0.00015342,2]
[332854289,1721583052512,-500.0,0.00015342,2]
[332854290,1721583052524,-976.27,0.00015342,2]
[332854291,1721583052534,-642.19,0.00015342,2]
[332854292,1721583052545,-552.84,0.00015342,2]
[332854293,1721583052555,-837.86,0.00015342,2]
[332854294,1721583052566,-500.0,0.00015342,2]
[332854295,1721583052576,-838.14,0.00015342,2]
[332854296,1721583052587,-500.0,0.00015342,2]
[332854297,1721583052597,-2035.58,0.00015342,2]
[332854298,1721583052608,-554.09,0.00015342,2]
[332854299,1721583052618,-500.0,0.00015342,2]
[332854300,1721583052628,-1328.22,0.00015342,2]
[332854301,1721583052639,-500.0,0.00015342,2]
[332854302,1721583052650,-500.0,0.00015342,2]
[332854303,1721583052660,-506.13,0.00015342,2]
[332854304,1721583052671,-1470.26,0.00015342,2]
[332854305,1721583052681,-2054.5,0.00015342,2]
[332854306,1721583052696,-500.0,0.00015342,2]
[332854307,1721583052706,-628.44,0.00015342,2]
[332854308,1721583052717,-500.0,0.00015342,2]
[332854309,1721583052727,-500.0,0.00015342,2]
[332854310,1721583052738,-700.9,0.00015342,2]
[332854311,1721583052749,-500.0,0.00015342,2]
[332854312,1721583052759,-500.0,0.00015342,2]
[332854313,1721583052771,-640.02687242,0.00015342,2]
[332854314,1721583052782,-630.92,0.00015342,2]
[332854315,1721583052793,-1078.09,0.00015342,2]
[332854316,1721583052804,-816.07,0.00015342,2]
[332854317,1721583052814,-500.0,0.00015342,2]
[332854318,1721583052824,-627.68,0.00015342,2]
[332854319,1721583052834,-604.38,0.00015342,2]
[332854320,1721583052845,-649.28,0.00015342,2]
[332854321,1721583052856,-2006.04,0.00015342,2]
[332854322,1721583052866,-500.0,0.00015342,2]
[332854323,1721583052876,-500.0,0.00015342,2]
[332854324,1721583052886,-514.46764343,0.00015342,2]
[332854325,1721583052897,-565.27,0.00015342,2]
[332854326,1721583052908,-527.61,0.00015342,2]
[332854327,1721583052918,-500.0,0.00015342,2]
[332854328,1721583052929,-500.0,0.00015342,2]
[332854329,1721583052939,-500.0,0.00015342,2]
[332854330,1721583052949,-500.0,0.00015342,2]
[332854331,1721583052959,-666.18,0.00015342,2]
[332854332,1721583052970,-3069.31,0.00015342,2]
[332854333,1721583052980,-859.08,0.00015342,2]
[332854334,1721583052990,-500.0,0.00015342,2]
[332854335,1721583052999,-500.0,0.00015342,2]
[332854336,1721583053009,-500.0,0.00015342,2]
[332854337,1721583053020,-500.0,0.00015342,2]
[332854338,1721583053031,-1517.82,0.00015342,2]
[332854339,1721583053041,-294.33968086,0.00015342,2]
[332854340,1721583053051,-1176.08,0.00015342,2]
[332854341,1721583053061,-500.0,0.00015342,2]
[332854342,1721583053071,-500.0,0.00015342,2]
[332854343,1721583053081,-500.0,0.00015342,2]
[332854344,1721583053091,-500.0,0.00015342,2]
[332854345,1721583053101,-500.0,0.00015342,2]
[332854346,1721583053111,-1445.42,0.00015342,2]
[332854347,1721583053122,-500.0,0.00015342,2]
[332854348,1721583053131,-500.0,0.00015342,2]
[332854349,1721583053141,-500.0,0.00015342,2]
[332854350,1721583053151,-771.46,0.00015342,2]
[332854351,1721583053161,-2045.09,0.00015342,2]
[332854352,1721583053171,-500.0,0.00015342,2]
[332854353,1721583053181,-500.0,0.00015342,2]
[332854354,1721583053190,-930.2,0.00015342,2]
[332854355,1721583053200,-500.0,0.00015342,2]
[332854356,1721583053211,-684.13,0.00015342,2]
[332854357,1721583053221,-500.0,0.00015342,2]
[332854358,1721583053230,-687.94,0.00015342,2]
[332854359,1721583053241,-1866.61,0.00015342,2]
[332854360,1721583053251,-1337.16,0.00015342,2]
[332854361,1721583053261,-565.6,0.00015342,2]
[332854362,1721583053272,-561.68,0.00015342,2]
[332854363,1721583053282,-723.1,0.00015342,2]
[332854364,1721583053292,-500.0,0.00015342,2]
[332854365,1721583053302,-1520.82,0.00015342,2]
[332854366,1721583053312,-500.0,0.00015342,2]
[332854367,1721583053322,-1951.93,0.00015342,2]
[332854368,1721583053332,-2114.25,0.00015342,2]
[332854369,1721583053342,-500.0,0.00015342,2]
[332854370,1721583053352,-1164.77,0.00015342,2]
[332854371,1721583053362,-1320.34,0.00015342,2]
[332854372,1721583053372,-744.8,0.00015342,2]
[332854373,1721583053383,-1724.01,0.00015342,2]
[332854374,1721583053393,-500.0,0.00015342,2]
[332854375,1721583053403,-1333.01,0.00015342,2]
[332854376,1721583053414,-500.0,0.00015342,2]
[332854377,1721583053424,-504.86,0.00015342,2]
[332854378,1721583053434,-531.31,0.00015342,2]
[332854379,1721583053445,-2564.77,0.00015342,2]
[332854380,1721583053455,-503.98,0.00015342,2]
[332854381,1721583053466,-1473.72,0.00015342,2]
[332854382,1721583053476,-500.0,0.00015342,2]
[332854383,1721583053486,-500.0,0.00015342,2]
[332854384,1721583053496,-579.86,0.00015342,2]
[332854385,1721583053506,-674.71,0.00015342,2]
[332854386,1721583053517,-1005.89,0.00015342,2]
[332854387,1721583053527,-500.0,0.00015342,2]
[332854388,1721583053537,-500.0,0.00015342,2]
[332854389,1721583053547,-500.0,0.00015342,2]
[332854390,1721583053558,-5550.3,0.00015342,2]
[332854391,1721583053568,-1341.62,0.00015342,2]
[332854392,1721583053578,-1204.73,0.00015342,2]
[332854393,1721583053588,-500.0,0.00015342,2]
[332854394,1721583053871,-12941.36,0.00015342,2]
[332854395,1721583053885,-1907.18,0.00015342,2]
[332854396,1721583053898,-3689.8,0.00015342,2]
[332854397,1721583053907,-500.0,0.00015342,2]
[332854398,1721583053918,-500.0,0.00015342,2]
[332854399,1721583053928,-1624.15,0.00015342,2]
[332854400,1721583053937,-3041.94,0.00015342,2]
[332854401,1721583053946,-1054.8,0.00015342,2]
[332854402,1721583053955,-2090.47,0.00015342,2]
[332854403,1721583053969,-500.0,0.00015342,2]
[332854404,1721583053978,-1806.74,0.00015342,2]
[332854405,1721583053988,-2202.13,0.00015342,2]
[332854406,1721583053998,-500.0,0.00015342,2]
[332854407,1721583054007,-500.0,0.00015342,2]
[332854408,1721583054017,-4016.4,0.00015342,2]
[332854409,1721583054026,-2213.48,0.00015342,2]
[332854410,1721583054035,-500.0,0.00015342,2]
[332854411,1721583054044,-500.0,0.00015342,2]
[332854412,1721583054053,-500.0,0.00015342,2]
[332854413,1721583054063,-2197.7,0.00015342,2]
[332854414,1721583054072,-1723.55,0.00015342,2]
[332854415,1721583054083,-500.0,0.00015342,2]
[332854416,1721583054092,-652.01,0.00015342,2]
[332854417,1721583054104,-5397.5,0.00015342,2]
[332854418,1721583054116,-1092.54,0.00015342,2]
[332854419,1721583054127,-993.63,0.00015342,2]
[332854420,1721583054136,-917.62,0.00015342,2]
[332854421,1721583054147,-500.0,0.00015342,2]
[332854422,1721583054157,-500.0,0.00015342,2]
[332854423,1721583054167,-1170.03,0.00015342,2]
[332854424,1721583054177,-716.45,0.00015342,2]
[332854425,1721583054187,-4132.02,0.00015342,2]
[332854426,1721583054197,-500.0,0.00015342,2]
[332854427,1721583054207,-500.0,0.00015342,2]
[332854428,1721583054216,-2222.11,0.00015342,2]
[332854429,1721583054225,-818.39,0.00015342,2]
[332854430,1721583054235,-935.93,0.00015342,2]
[332854431,1721583054245,-7400.98,0.00015342,2]
[332854432,1721583054254,-500.0,0.00015342,2]
[332854433,1721583054264,-930.77,0.00015342,2]
[332854434,1721583054275,-500.0,0.00015342,2]
[332854435,1721583054284,-734.72,0.00015342,2]
[332854436,1721583054293,-500.0,0.00015342,2]
[332854437,1721583054303,-500.0,0.00015342,2]
[332854438,1721583054312,-1669.97,0.00015342,2]
[332854439,1721583054323,-850.61,0.00015342,2]
[332854440,1721583054334,-500.0,0.00015342,2]
[332854441,1721583054344,-552.12,0.00015342,2]
[332854442,1721583054354,-930.18,0.00015342,2]
[332854443,1721583054365,-500.0,0.00015342,2]
[332854444,1721583054376,-827.41,0.00015342,2]
[332854445,1721583054386,-1082.74,0.00015342,2]
[332854446,1721583054396,-1077.15,0.00015342,2]
[332854447,1721583054407,-2665.28,0.00015342,2]
[332854448,1721583054420,-1492.38,0.00015342,2]
[332854449,1721583054429,-500.0,0.00015342,2]
[332854450,1721583054438,-1378.02,0.00015342,2]
[332854451,1721583054448,-500.0,0.00015342,2]
[332854452,1721583054458,-1450.96,0.00015342,2]
[332854453,1721583054468,-500.0,0.00015342,2]
[332854454,1721583054478,-500.0,0.00015342,2]
[332854455,1721583054487,-500.0,0.00015342,2]
[332854456,1721583054496,-559.28,0.00015342,2]
[332854457,1721583054505,-776.21,0.00015342,2]
[332854458,1721583054516,-2703.39,0.00015342,2]
[332854459,1721583054527,-500.0,0.00015342,2]
[332854460,1721583054539,-508.21,0.00015342,2]
[332854461,1721583054550,-722.53,0.00015342,2]
[332854462,1721583054560,-1011.22,0.00015342,2]
[332854463,1721583054570,-500.0,0.00015342,2]
[332854464,1721583054581,-521.74,0.00015342,2]
[332854465,1721583054591,-500.0,0.00015342,2]
[332854466,1721583054601,-1538.99,0.00015342,2]
[332854467,1721583054611,-1744.99,0.00015342,2]
[332854468,1721583054622,-500.0,0.00015342,2]
[332854469,1721583054632,-10125.34,0.00015342,2]
[332854470,1721583054642,-923.66,0.00015342,2]
[332854471,1721583054651,-767.77,0.00015342,2]
[332854472,1721583054662,-4491.18,0.00015342,2]
[332854473,1721583054672,-500.0,0.00015342,2]
[332854474,1721583054682,-1883.32,0.00015342,2]
[332854475,1721583054696,-556.62,0.00015342,2]
[332854476,1721583054707,-500.0,0.00015342,2]
[332854477,1721583054717,-500.0,0.00015342,2]
[332854478,1721583054727,-500.0,0.00015342,2]
[332854479,1721583054738,-710.76,0.00015342,2]
[332854480,1721583054748,-3281.33,0.00015342,2]
[332854481,1721583054758,-763.56,0.00015342,2]
[332854482,1721583054772,-638.5,0.00015342,2]
[332854483,1721583054783,-4482.68,0.00015342,2]
[332854484,1721583054795,-644.61,0.00015342,2]
[332854485,1721583054804,-850.61,0.00015342,2]
[332854486,1721583054813,-500.0,0.00015342,2]
[332854487,1721583054822,-648.14,0.00015342,2]
[332854488,1721583054832,-2313.44,0.00015342,2]
[332854489,1721583054843,-1229.93,0.00015342,2]
[332854490,1721583054853,-6955.44,0.00015342,2]
[332854491,1721583054862,-500.0,0.00015342,2]
[332854492,1721583054872,-5865.42,0.00015342,2]
[332854493,1721583054883,-500.0,0.00015342,2]
[332854494,1721583054893,-500.0,0.00015342,2]
[332854495,1721583054903,-877.65,0.00015342,2]
[332854496,1721583054914,-500.0,0.00015342,2]
[332854497,1721583054925,-500.0,0.00015342,2]
[332854498,1721583054935,-831.66,0.00015342,2]
[332854499,1721583054946,-500.0,0.00015342,2]
[332854500,1721583054957,-500.0,0.00015342,2]
[332854501,1721583054967,-500.0,0.00015342,2]
[332854502,1721583054979,-500.0,0.00015342,2]
[332854503,1721583054990,-500.0,0.00015342,2]
[332854504,1721583054999,-500.0,0.00015342,2]
[332854505,1721583055009,-500.0,0.00015342,2]
[332854506,1721583055019,-500.0,0.00015342,2]
[332854507,1721583055028,-500.0,0.00015342,2]
[332854508,1721583055039,-500.0,0.00015342,2]
[332854509,1721583055051,-539.22,0.00015342,2]
[332854510,1721583055063,-500.0,0.00015342,2]
[332854511,1721583055074,-281.33,0.00015342,2]
[332854512,1721583055084,-500.0,0.00015342,2]
[332854513,1721583055093,-284.10599528,0.00015342,2]
[332854514,1721583055102,-500.0,0.00015342,2]
[332854515,1721583055112,-500.0,0.00015342,2]
[332854516,1721583055121,-500.0,0.00015342,2]
[332854517,1721583055131,-500.0,0.00015342,2]
[332854518,1721583055141,-500.0,0.00015342,2]
[332854519,1721583055151,-500.0,0.00015342,2]
[332854520,1721583055161,-151.0,0.00015342,2]
[332854521,1721583055171,-151.0,0.00015342,2]
[332854522,1721583055181,-151.0,0.00015342,2]
[332854523,1721583055191,-165.275678,0.00015342,2]
[332854524,1721583055200,-165.275678,0.00015342,2]
[332854525,1721583055210,-165.275678,0.00015342,2]
[332854526,1721583055219,-165.275678,0.00015342,2]
[332854527,1721583055229,-165.275678,0.00015342,2]
[332854528,1721583055238,-165.275678,0.00015342,2]
[332854529,1721583055248,-151.0,0.00015342,2]
[332854530,1721583055259,-151.0,0.00015342,2]
[332854531,1721583055270,-151.0,0.00015342,2]
[332854532,1721583055280,-151.0,0.00015342,2]
[332854533,1721583055289,-151.0,0.00015342,2]
[332854534,1721583055299,-151.0,0.00015342,2]
[332854535,1721583055309,-151.0,0.00015342,2]
[332854536,1721583055318,-151.0,0.00015342,2]
[332854537,1721583055327,-151.0,0.00015342,2]
[332854538,1721583055336,-206.5817573,0.00015473,2]
[332854539,1721583055345,-587.6063692,0.00015473,2]
[332854540,1721583055354,-620.0,0.00015486,2]
[332854541,1721583055363,-1398.78201665,0.00015495,2]
[332854542,1721583055372,-500.0,0.00015504,2]
[332854543,1721583055382,-500.0,0.00015504,2]
[332854544,1721583055391,-500.0,0.00015504,2]
[332854545,1721583055401,-500.0,0.00015505,2]
[332854546,1721583055411,-500.0,0.00015505,2]
[332854547,1721583055420,-500.0,0.00015505,2]
[332854548,1721583055430,-222.53,0.00015505,2]
[332854549,1721583055439,-500.0,0.00015505,2]
[332854550,1721583055449,-500.0,0.00015505,2]
[332854551,1721583055458,-500.0,0.00015505,2]
[332854552,1721583055468,-500.0,0.00015505,2]
[332854553,1721583055478,-500.0,0.00015505,2]
[332854554,1721583055489,-500.0,0.00015505,2]
[332854555,1721583055499,-500.0,0.00015505,2]
[332854556,1721583055509,-500.0,0.00015505,2]
[332854557,1721583055520,-500.0,0.00015505,2]
[332854558,1721583055530,-500.0,0.00015505,2]
[332854559,1721583055540,-500.0,0.00015505,2]
[332854560,1721583055550,-500.0,0.00015505,2]
[332854561,1721583055560,-500.0,0.00015505,2]
[332854562,1721583055570,-500.0,0.00015505,2]
[332854563,1721583055580,-171.856831,0.00015505,2]
[332854564,1721583055589,-500.0,0.00015505,2]
[332854565,1721583055599,-500.0,0.00015505,2]
[332854566,1721583055609,-500.0,0.00015505,2]
[332854567,1721583055619,-500.0,0.00015505,2]
[332854568,1721583055628,-500.0,0.00015505,2]
[332854569,1721583055638,-500.0,0.00015505,2]
[332854570,1721583055648,-500.0,0.00015505,2]
[332854571,1721583055657,-500.0,0.00015505,2]
[332854572,1721583055667,-500.0,0.00015505,2]
[332854573,1721583055678,-500.0,0.00015505,2]
[332854574,1721583055693,-606.12,0.00015505,2]
[332854575,1721583055703,-190.51,0.00015505,2]
[332854576,1721583055713,-500.0,0.00015505,2]
[332854577,1721583055722,-500.0,0.00015505,2]
[332854578,1721583055732,-500.0,0.00015505,2]
[332854579,1721583055744,-164.77,0.00015505,2]
[332854580,1721583055755,-500.0,0.00015505,2]
[332854581,1721583055769,-500.0,0.00015505,2]
[332854582,1721583055781,-500.0,0.00015505,2]
[332854583,1721583055792,-500.0,0.00015505,2]
[332854584,1721583055802,-500.0,0.00015505,2]
[332854585,1721583055813,-548.85152488,0.00015505,2]
[332854586,1721583055823,-577.09638351,0.00015505,2]
[332854587,1721583055833,-500.0,0.00015505,2]
[332854588,1721583055843,-500.0,0.00015505,2]
[332854589,1721583055853,-508.74014044,0.00015505,2]
[332854590,1721583055863,-500.0,0.00015505,2]
[332854591,1721583055873,-500.0,0.00015505,2]
[332854592,1721583055883,-304.58926065,0.00015505,2]
[332854593,1721583055893,-500.0,0.00015513,2]
[332854594,1721583055903,-215.38590663,0.00015513,2]
[332854595,1721583055912,-575.82,0.00015513,2]
[332854596,1721583055922,-500.0,0.00015513,2]
[332854597,1721583055932,-500.0,0.00015513,2]
[332854598,1721583055942,-500.0,0.00015513,2]
[332854599,1721583055952,-333.01,0.00015513,2]
[332854600,1721583055962,-234.72,0.00015513,2]
[332854601,1721583055971,-575.36970071,0.00015513,2]
[332854602,1721583055981,-173.00768243,0.00015516,2]
[332854603,1721583055991,-659.88,0.00015589,2]
[332854604,1721583056000,-627.65,0.00015589,2]
[332854605,1721583056010,-500.0,0.00015589,2]
[332854606,1721583056022,-500.0,0.00015595,2]
[332854607,1721583056032,-500.0,0.00015595,2]
[332854608,1721583056042,-500.0,0.00015604,2]
[332854609,1721583056051,-1398.78201665,0.00015606,2]
[332854610,1721583056061,-500.0,0.00015614,2]
[332854611,1721583056071,-500.0,0.00015614,2]
[332854612,1721583056081,-636.03,0.00015614,2]
[332854613,1721583056091,-500.0,0.00015614,2]
[332854614,1721583056100,-185.04,0.00015614,2]
[332854615,1721583056109,-500.0,0.00015614,2]
[332854616,1721583056119,-500.0,0.00015615,2]
[332854617,1721583056128,-539.22,0.00015615,2]
[332854618,1721583056138,-500.0,0.00015615,2]
[332854619,1721583056147,-500.0,0.00015615,2]
[332854620,1721583056157,-541.94,0.00015615,2]
[332854621,1721583056166,-500.0,0.00015615,2]
[332854622,1721583056177,-500.0,0.00015615,2]
[332854623,1721583056186,-500.0,0.00015615,2]
[332854624,1721583056196,-500.0,0.00015615,2]
[332854625,1721583056205,-500.0,0.00015616,2]
[332854626,1721583056215,-500.0,0.00015616,2]
[332854627,1721583056224,-500.0,0.00015616,2]
[332854628,1721583056234,-683.88,0.00015616,2]
[332854629,1721583056243,-2306.83,0.00015616,2]
[332854630,1721583056253,-500.0,0.00015616,2]
[332854631,1721583056263,-511.06721115,0.00015616,2]
[332854632,1721583056274,-500.0,0.00015616,2]
[332854633,1721583056283,-500.0,0.00015616,2]
[332854634,1721583056293,-505.29628282,0.00015616,2]
[332854635,1721583056303,-500.0,0.00015616,2]
[332854636,1721583056313,-500.0,0.00015616,2]
[332854637,1721583056322,-500.0,0.00015616,2]
[332854638,1721583056332,-220.85419398,0.00015616,2]
[332854639,1721583056342,-500.0,0.00015616,2]
[332854640,1721583056352,-500.0,0.00015616,2]
[332854641,1721583056362,-500.0,0.00015616,2]
[332854642,1721583056372,-500.0,0.00015616,2]
[332854643,1721583056382,-500.0,0.00015616,2]
[332854644,1721583056392,-539.84,0.00015616,2]
[332854645,1721583056403,-2033.74,0.00015616,2]
[332854646,1721583056414,-500.0,0.00015616,2]
[332854647,1721583056424,-500.0,0.00015616,2]
[332854648,1721583056435,-500.0,0.00015616,2]
[332854649,1721583056446,-500.0,0.00015616,2]
[332854650,1721583056457,-1177.69,0.00015616,2]
[332854651,1721583056466,-735.43,0.00015616,2]
[332854652,1721583056477,-554.94,0.00015616,2]
[332854653,1721583056488,-500.0,0.00015616,2]
[332854654,1721583056498,-549.02,0.00015616,2]
[332854655,1721583056508,-685.82,0.00015616,2]
[332854656,1721583056520,-575.57,0.00015616,2]
[332854657,1721583056530,-1031.38,0.00015616,2]
[332854658,1721583056539,-500.0,0.00015616,2]
[332854659,1721583056550,-500.0,0.00015616,2]
[332854660,1721583056559,-491.4600684,0.00015616,2]
[332854661,1721583056569,-500.0,0.00015616,2]
[332854662,1721583056578,-714.38,0.00015616,2]
[332854663,1721583056589,-500.0,0.00015616,2]
[332854664,1721583056599,-500.0,0.00015616,2]
[332854665,1721583056609,-505.12,0.00015616,2]
[332854666,1721583056619,-1365.28,0.00015616,2]
[332854667,1721583056629,-500.0,0.00015616,2]
[332854668,1721583056639,-647.07,0.00015616,2]
[332854669,1721583056649,-589.48,0.00015616,2]
[332854670,1721583056659,-508.21,0.00015616,2]
[332854671,1721583056670,-500.0,0.00015616,2]
[332854672,1721583056680,-768.59,0.00015616,2]
[332854673,1721583056694,-647.55,0.00015616,2]
[332854674,1721583056714,-500.0,0.00015616,2]
[332854675,1721583056724,-953.2,0.00015616,2]
[332854676,1721583056735,-500.0,0.00015616,2]
[332854677,1721583056745,-874.1,0.00015616,2]
[332854678,1721583056755,-519.25,0.00015616,2]
[332854679,1721583056767,-884.66,0.00015616,2]
[332854680,1721583056778,-1057.52,0.00015616,2]
[332854681,1721583056788,-1889.7,0.00015616,2]
[332854682,1721583056799,-500.0,0.00015616,2]
[332854683,1721583056808,-1132.04,0.00015616,2]
[332854684,1721583056817,-666.49,0.00015616,2]
[332854685,1721583056827,-668.28,0.00015616,2]
[332854686,1721583056839,-500.0,0.00015616,2]
[332854687,1721583056850,-1624.09,0.00015616,2]
[332854688,1721583056863,-500.0,0.00015616,2]
[332854689,1721583056874,-976.27,0.00015616,2]
[332854690,1721583056887,-642.19,0.00015616,2]
[332854691,1721583056897,-552.84,0.00015616,2]
[332854692,1721583056907,-837.86,0.00015616,2]
[332854693,1721583056917,-500.0,0.00015616,2]
[332854694,1721583056927,-838.14,0.00015616,2]
[332854695,1721583056937,-500.0,0.00015616,2]
[332854696,1721583056949,-2035.58,0.00015616,2]
[332854697,1721583056959,-554.09,0.00015616,2]
[332854698,1721583056969,-500.0,0.00015616,2]
[332854699,1721583056979,-1328.22,0.00015616,2]
[332854700,1721583056989,-500.0,0.00015616,2]
[332854701,1721583056999,-500.0,0.00015616,2]
[332854702,1721583057008,-506.13,0.00015616,2]
[332854703,1721583057018,-1470.26,0.00015616,2]
[332854704,1721583057028,-2054.5,0.00015616,2]
[332854705,1721583057038,-500.0,0.00015616,2]
[332854706,1721583057049,-628.44,0.00015616,2]
[332854707,1721583057058,-500.0,0.00015616,2]
[332854708,1721583057068,-500.0,0.00015616,2]
[332854709,1721583057077,-700.9,0.00015616,2]
[332854710,1721583057089,-500.0,0.00015616,2]
[332854711,1721583057098,-500.0,0.00015616,2]
[332854712,1721583057109,-630.92,0.00015616,2]
[332854713,1721583057119,-1078.09,0.00015616,2]
[332854714,1721583057129,-816.07,0.00015616,2]
[332854715,1721583057139,-500.0,0.00015616,2]
[332854716,1721583057150,-627.68,0.00015616,2]
[332854717,1721583057160,-604.38,0.00015616,2]
[332854718,1721583057171,-649.28,0.00015616,2]
[332854719,1721583057181,-2006.04,0.00015616,2]
[332854720,1721583057191,-500.0,0.00015616,2]
[332854721,1721583057202,-500.0,0.00015616,2]
[332854722,1721583057212,-565.27,0.00015616,2]
[332854723,1721583057222,-527.61,0.00015616,2]
[332854724,1721583057233,-500.0,0.00015616,2]
[332854725,1721583057243,-500.0,0.00015616,2]
[332854726,1721583057408,-500.0,0.00015616,2]
[332854727,1721583057422,-500.0,0.00015616,2]
[332854728,1721583057433,-666.18,0.00015616,2]
[332854729,1721583057443,-3069.31,0.00015616,2]
[332854730,1721583057453,-859.08,0.00015616,2]
[332854731,1721583057462,-500.0,0.00015616,2]
[332854732,1721583057474,-309.9556386,0.00015616,2]
[332854733,1721583057486,-500.0,0.00015616,2]
[332854734,1721583057497,-500.0,0.00015616,2]
[332854735,1721583057508,-1517.82,0.00015616,2]
[332854736,1721583057519,-1176.08,0.00015616,2]